bitfinex/quotes_BTCUSD_20260104
["timestamp","ask_amount","ask_price","bid_price","bid_amount"]
[1767564502637,0.01086768,91275.0,91272.0,0.04848612]
[1767564503275,0.01095578,91276.0,91272.0,0.04848612]
[1767564503721,0.0109559,91275.0,91271.0,0.02192]
[1767564504599,0.01086768,91275.0,91271.0,0.02192]
[1767564504800,0.01086768,91275.0,91272.0,0.04848612]
[1767564505024,0.01077946,91275.0,91272.0,0.04848612]
[1767564505599,0.01095578,91276.0,91272.0,0.04848612]
[1767564505824,0.01095578,91276.0,91271.0,0.02192]
[1767564506770,0.01095578,91276.0,91271.0,0.03287638]
[1767564506947,1e-08,91277.0,91276.0,0.000999]
[1767564507313,1e-08,91277.0,91272.0,0.01095626]
[1767564507514,0.01095567,91277.0,91271.0,0.03287638]
[1767564508007,0.01095567,91277.0,91272.0,0.01095626]
[1767564508214,0.01095567,91277.0,91271.0,0.03287638]
[1767564508410,0.01095578,91276.0,91271.0,0.03287638]
[1767564508623,0.01095578,91276.0,91271.0,0.02192]
[1767564509090,0.01095578,91276.0,91271.0,0.03287638]
[1767564509279,0.01095578,91276.0,91271.0,0.02192]
[1767564509431,0.01095578,91276.0,91272.0,0.04848612]
[1767564512771,0.01095567,91277.0,91271.0,0.03287638]
[1767564512972,0.01095578,91276.0,91272.0,0.04894808]
[1767564513331,0.0109559,91275.0,91272.0,0.04894808]
[1767564513533,0.01095578,91276.0,91272.0,0.04894808]
[1767564514855,0.01102272,91276.0,91272.0,0.04894808]
[1767564515263,6.694e-05,91276.0,91272.0,0.04894808]
[1767564516097,9.4e-07,91276.0,91271.0,0.03287638]
[1767564516295,9.4e-07,91276.0,91273.0,0.04613495]
[1767564516609,9.4e-07,91276.0,91272.0,0.01095626]
[1767564516813,9.4e-07,91276.0,91272.0,0.05709121]
[1767564517021,9.4e-07,91276.0,91274.0,0.04613495]
[1767564519227,9.4e-07,91276.0,91274.0,0.04609495]
[1767564519831,0.21907516,91293.0,91280.0,0.04613495]
[1767564520029,0.01095422,91289.0,91283.0,0.05708989]
[1767564520253,6.701e-05,91289.0,91285.0,0.04613495]
[1767564520506,0.01095398,91291.0,91289.0,0.04613495]
[1767564521048,0.01095422,91289.0,91285.0,0.04613495]
[1767564521297,0.01095434,91288.0,91285.0,0.04606895]
[1767564521525,0.01095446,91287.0,91281.0,0.01095518]
[1767564521749,0.04815258,91285.0,91281.0,0.01095518]
[1767564521956,0.04815258,91285.0,91279.0,0.06573217]
[1767564522161,0.04815258,91285.0,91281.0,0.01095518]
[1767564522555,0.04815258,91285.0,91280.0,0.0109553]
[1767564522759,0.04815258,91285.0,91281.0,0.01095518]
[1767564524109,0.01095446,91287.0,91281.0,0.01095518]
[1767564525171,0.01095458,91286.0,91278.0,0.02192]
[1767564525376,0.01095446,91287.0,91282.0,0.01095506]
[1767564525537,0.01095446,91287.0,91281.0,0.01095518]
[1767564526060,0.01095458,91286.0,91281.0,0.01095518]
[1767564526626,0.01095446,91287.0,91281.0,0.01095518]
[1767564528172,0.01095458,91286.0,91281.0,0.01095518]
[1767564528378,0.04815258,91283.0,91278.0,0.03287554]
[1767564528578,0.04815258,91283.0,91279.0,0.01095542]
[1767564529281,0.04815258,91283.0,91278.0,0.03287554]
[1767564529485,0.04815258,91282.0,91278.0,0.02192]
[1767564529684,0.01095518,91281.0,91278.0,0.02192]
[1767564529822,0.04815258,91277.0,91272.0,0.02192]
[1767564530164,0.01095578,91276.0,91273.0,0.04613495]
[1767564530407,0.01095566,91277.0,91273.0,0.04613495]
[1767564530822,0.01095554,91278.0,91273.0,0.04613495]
[1767564531057,0.01095542,91279.0,91277.0,0.000999]
[1767564531200,0.01095566,91277.0,91273.0,0.03189838]
[1767564531590,0.01095554,91278.0,91273.0,0.03189838]
[1767564532205,0.01095566,91277.0,91273.0,0.03189838]
[1767564532446,0.04815258,91275.0,91272.0,0.02192]
[1767564532658,0.01095578,91276.0,91272.0,0.02192]
[1767564532858,0.01095578,91276.0,91273.0,0.04613495]
[1767564533098,0.03415258,91275.0,91272.0,0.02192]
[1767564533295,0.03406436,91275.0,91272.0,0.02192]
[1767564533492,0.01095578,91276.0,91272.0,0.06805495]
[1767564533656,0.01095578,91276.0,91273.0,0.04613495]
[1767564533833,0.01095578,91276.0,91272.0,0.02192]
[1767564534036,0.04815258,91275.0,91272.0,0.02192]
[1767564534240,0.01095578,91276.0,91272.0,0.02192]
[1767564534641,0.01095578,91276.0,91273.0,0.04613495]
[1767564536053,0.04815258,91275.0,91272.0,0.02192]
[1767564536483,0.01095578,91276.0,91272.0,0.02192]
[1767564536908,0.0109559,91275.0,91272.0,0.02192]
[1767564537431,0.01095578,91276.0,91272.0,0.02192]
[1767564538020,0.01095578,91276.0,91273.0,0.04613495]
[1767564538307,0.01095554,91278.0,91273.0,0.04613495]
[1767564538508,0.0109553,91280.0,91277.0,0.04613495]
[1767564538869,0.0109553,91280.0,91277.0,0.04604504]
[1767564539384,0.06573224,91280.0,91277.0,0.04604504]
[1767564540727,0.05073224,91280.0,91277.0,0.04604504]
[1767564541175,0.06168754,91280.0,91277.0,0.04604504]
[1767564542131,0.05477749,91279.0,91277.0,0.04604504]
[1767564543464,0.01095554,91278.0,91273.0,0.01095614]
[1767564543807,0.00995654,91278.0,91274.0,0.04702357]
[1767564545583,0.01095566,91277.0,91274.0,0.04702357]
[1767564545801,0.00995654,91278.0,91274.0,0.04702357]
[1767564546413,0.00995654,91278.0,91274.0,0.02922769]
[1767564547652,0.01095566,91277.0,91274.0,0.02922769]
[1767564548071,0.00995654,91278.0,91274.0,0.02922769]
[1767564548351,0.01095566,91277.0,91274.0,0.02922769]
[1767564548528,0.0059122,91278.0,91274.0,0.02922769]
[1767564548690,0.01095566,91277.0,91274.0,0.02922769]
[1767564548888,0.06573403,91277.0,91274.0,0.02922769]
[1767564549577,0.01095566,91277.0,91274.0,0.02922769]
[1767564549955,0.01095554,91278.0,91274.0,0.02922769]
[1767564550498,0.01095542,91279.0,91274.0,0.02922769]
[1767564550922,0.01095554,91278.0,91273.0,0.01095614]
[1767564551359,0.01095542,91279.0,91274.0,0.01095602]
[1767564552314,0.01095554,91278.0,91273.0,0.01095614]
[1767564553741,0.01095542,91279.0,91274.0,0.01095602]
[1767564553939,0.01095554,91278.0,91273.0,0.01095614]
[1767564554717,0.01095554,91278.0,91274.0,0.01095602]
[1767564554987,0.01095554,91278.0,91273.0,0.01095614]
[1767564555212,0.01095542,91279.0,91274.0,0.01095602]
[1767564555365,0.01095542,91279.0,91273.0,0.00767545]
[1767564556183,0.06573296,91279.0,91272.0,0.02192]
[1767564556389,0.000999,91273.0,91272.0,0.02192]
[1767564556546,0.01095566,91277.0,91273.0,0.01095614]
[1767564556746,0.01095566,91277.0,91272.0,0.03287626]
[1767564557652,0.01095566,91277.0,91273.0,0.04702357]
[1767564558031,0.01095554,91278.0,91273.0,0.05797971]
[1767564559389,0.01095566,91277.0,91273.0,0.04702357]
[1767564559595,0.01095554,91278.0,91273.0,0.05797971]
[1767564559821,0.01095542,91279.0,91275.0,0.04702357]
[1767564560020,0.01095554,91278.0,91275.0,0.04702357]
[1767564560445,0.01095554,91278.0,91275.0,0.04602457]
[1767564561936,0.01095566,91277.0,91272.0,0.03287626]
[1767564562141,0.01095566,91277.0,91273.0,0.04702357]
[1767564563010,0.01095566,91277.0,91272.0,0.02744493]
[1767564563216,0.01095578,91276.0,91273.0,0.04702357]
[1767564563412,0.05478071,91273.0,91272.0,0.01648867]
[1767564564154,0.04478071,91273.0,91272.0,0.01648867]
[1767564564497,0.06573583,91275.0,91272.0,0.01648867]
[1767564564699,0.10470711,91274.0,91272.0,0.01648867]
[1767564564913,0.05478067,91274.0,91272.0,0.01648867]
[1767564565774,0.06573583,91275.0,91272.0,0.01648867]
[1767564566318,0.06573583,91275.0,91269.0,0.00964926]
[1767564566319,0.01095602,91274.0,91269.0,0.00964926]
[1767564566721,0.01095602,91274.0,91270.0,0.04702357]
[1767564567590,0.04992644,91273.0,91269.0,0.00964926]
[1767564568356,0.04892744,91273.0,91270.0,0.0109565]
[1767564568528,0.04892744,91273.0,91269.0,0.00964926]
[1767564568895,0.06088162,91281.0,91272.0,0.01095626]
[1767564569116,0.01095554,91278.0,91272.0,0.01095626]
[1767564569292,0.06088198,91278.0,91272.0,0.01095626]
[1767564569473,0.06088198,91278.0,91273.0,0.01095614]
[1767564570882,0.01095554,91278.0,91273.0,0.01095614]
[1767564571716,0.00691096,91279.0,91274.0,0.01095602]
[1767564572235,0.01095554,91278.0,91273.0,0.01095614]
[1767564572441,0.00691096,91279.0,91274.0,0.01095602]
[1767564572897,0.01095554,91278.0,91273.0,0.01095614]
[1767564573413,0.00691096,91279.0,91273.0,0.01095614]
[1767564573618,0.01095554,91278.0,91273.0,0.01095614]
[1767564573827,0.00691096,91279.0,91274.0,0.01095602]
[1767564574231,0.065729,91284.0,91276.0,0.01095578]
[1767564574435,0.02192,91284.0,91278.0,0.01095554]
[1767564574892,0.02192,91284.0,91279.0,0.01095542]
[1767564575090,0.03287482,91284.0,91279.0,0.01086552]
[1767564575316,0.000999,91279.0,91277.0,0.04938495]
[1767564575448,0.000999,91279.0,91276.0,0.01095578]
[1767564575857,0.01095506,91282.0,91277.0,0.01095566]
[1767564576058,0.01095494,91283.0,91278.0,0.01095554]
[1767564576512,0.04904037,91282.0,91278.0,0.01095554]
[1767564576678,0.01095494,91283.0,91275.0,0.05477896]
[1767564577447,0.01095494,91283.0,91277.0,0.01095566]
[1767564577695,0.01095494,91283.0,91275.0,0.05477896]
[1767564577867,0.01095494,91283.0,91277.0,0.01095566]
[1767564577868,0.01095506,91282.0,91277.0,0.01095566]
[1767564578315,0.01095494,91283.0,91277.0,0.01095566]
[1767564578630,0.01095494,91283.0,91278.0,0.01095554]
[1767564579442,0.08360402,91284.0,91277.0,0.01095566]
[1767564580049,0.08360402,91284.0,91278.0,0.01095554]
[1767564580210,0.01095494,91283.0,91277.0,0.01095566]
[1767564580413,0.01095506,91282.0,91277.0,0.01095566]
[1767564581648,0.01095494,91283.0,91278.0,0.01095554]
[1767564581843,0.01095494,91283.0,91278.0,0.01021712]
[1767564582048,0.01095494,91283.0,91277.0,0.01095566]
[1767564583225,0.01095494,91283.0,91278.0,0.01095554]
[1767564584231,0.01095494,91283.0,91279.0,0.01095542]
[1767564584450,0.01095494,91283.0,91278.0,0.01095554]
[1767564585269,0.01095494,91283.0,91277.0,0.01095566]
[1767564585452,0.02882976,91284.0,91277.0,0.06573357]
[1767564585869,0.05999543,91282.0,91277.0,0.01095566]
[1767564586094,0.04904037,91282.0,91278.0,0.01095554]
[1767564586234,0.01095494,91283.0,91278.0,0.01095554]
[1767564586413,0.02882976,91284.0,91279.0,0.01095542]
[1767564587020,0.01095494,91283.0,91278.0,0.01095554]
[1767564587335,0.04904037,91282.0,91278.0,0.01095554]
[1767564587534,0.04904037,91282.0,91277.0,0.01095566]
[1767564587941,0.04904037,91282.0,91279.0,0.01095542]
[1767564588141,0.02882976,91284.0,91279.0,0.01086552]
[1767564590634,0.02882976,91284.0,91278.0,0.01095554]
[1767564591398,0.02882976,91284.0,91278.0,0.01101104]
[1767564591399,0.01095494,91283.0,91278.0,0.01101104]
[1767564591986,0.02882976,91284.0,91279.0,0.01095542]
[1767564592186,0.01095494,91283.0,91278.0,0.01101104]
[1767564592840,0.01095494,91283.0,91278.0,9.55e-05]
[1767564593705,0.02882976,91284.0,91278.0,0.01105104]
[1767564593908,0.01095494,91283.0,91278.0,0.01105104]
[1767564595010,0.01095494,91283.0,91279.0,0.01095542]
[1767564595214,0.02882976,91284.0,91279.0,0.01095542]
[1767564595485,0.04904037,91283.0,91279.0,0.01105092]
[1767564595618,0.04904037,91283.0,91277.0,0.01095566]
[1767564595619,0.05999531,91283.0,91277.0,0.06573347]
[1767564595817,0.01095494,91283.0,91279.0,0.01095542]
[1767564596040,0.04904037,91282.0,91279.0,0.01095542]
[1767564596266,0.04904037,91282.0,91278.0,0.01095554]
[1767564596466,0.01095494,91283.0,91278.0,0.01095554]
[1767564597790,0.0247847,91284.0,91279.0,0.01095542]
[1767564598963,0.01095494,91283.0,91278.0,0.01095554]
[1767564599163,0.0247847,91284.0,91278.0,0.01095554]
[1767564599365,0.0247847,91284.0,91279.0,0.01095542]
[1767564599564,0.01095494,91283.0,91278.0,0.01095554]
[1767564600365,0.01095494,91283.0,91272.0,0.04938495]
[1767564600569,0.0247847,91284.0,91278.0,0.01095554]
[1767564601501,0.0247847,91284.0,91278.0,0.01086564]
[1767564601927,0.0247847,91284.0,91277.0,0.01095566]
[1767564602068,0.0547703,91291.0,91279.0,0.05857476]
[1767564602278,0.02192,91290.0,91282.0,0.0585744]
[1767564602610,0.000999,91282.0,91279.0,0.01095542]
[1767564602997,0.0109547,91285.0,91279.0,0.01095542]
[1767564603178,0.01095458,91286.0,91279.0,0.06573248]
[1767564603374,0.0109547,91285.0,91279.0,0.01095542]
[1767564603582,0.01095458,91286.0,91279.0,0.01095542]
[1767564604544,0.01095482,91284.0,91279.0,0.01095542]
[1767564604690,0.01095458,91286.0,91279.0,0.01095542]
[1767564604691,0.0109547,91285.0,91279.0,0.01095542]
[1767564605053,0.0059547,91285.0,91279.0,0.01095542]
[1767564605176,0.01095482,91284.0,91279.0,0.01095542]
[1767564605375,0.01095482,91284.0,91278.0,0.01095554]
[1767564605578,0.01095458,91286.0,91279.0,0.01095542]
[1767564605778,0.04808832,91284.0,91279.0,0.01095542]
[1767564607437,0.0109547,91285.0,91279.0,0.01095542]
[1767564607657,0.01095482,91284.0,91278.0,0.01021504]
[1767564608050,0.0109547,91285.0,91279.0,0.01095542]
[1767564608255,0.01095458,91286.0,91279.0,0.01095542]
[1767564609301,0.01095458,91286.0,91280.0,0.0109553]
[1767564609621,0.0109547,91285.0,91280.0,0.0109553]
[1767564609824,0.0109547,91285.0,91279.0,0.01095542]
[1767564610030,0.01095458,91286.0,91280.0,0.0109553]
[1767564610201,0.0109547,91285.0,91279.0,0.01095542]
[1767564610782,0.04808832,91284.0,91279.0,0.01095542]
[1767564611990,0.01095458,91286.0,91279.0,0.01095542]
[1767564612211,0.0109547,91285.0,91279.0,0.01095542]
[1767564612603,0.00790928,91286.0,91279.0,0.01095542]
[1767564613200,0.0109547,91285.0,91279.0,0.01095542]
[1767564613399,0.0109547,91285.0,91278.0,0.01095554]
[1767564613647,0.0109547,91285.0,91279.0,0.01095542]
[1767564613892,0.0109547,91285.0,91278.0,0.01095554]
[1767564614084,0.0109547,91285.0,91279.0,0.01095542]
[1767564614240,0.00790928,91286.0,91279.0,0.01095542]
[1767564615251,0.0109547,91285.0,91279.0,0.01095542]
[1767564615726,0.00790928,91286.0,91279.0,0.01095542]
[1767564617157,0.01437683,91285.0,91279.0,0.01095542]
[1767564617384,0.00342213,91284.0,91279.0,0.01095542]
[1767564617586,0.00342213,91283.0,91279.0,0.01095542]
[1767564617832,0.00342213,91282.0,91279.0,0.01095542]
[1767564618126,0.00342213,91281.0,91278.0,0.01095554]
[1767564618378,0.00342213,91280.0,91277.0,0.06573349]
[1767564618570,0.00342213,91279.0,91278.0,0.01095554]
[1767564620069,0.00342213,91279.0,91277.0,0.06573349]
[1767564620234,0.00537683,91285.0,91278.0,0.01095554]
[1767564620433,0.01095482,91284.0,91277.0,0.06573349]
[1767564620649,0.00537683,91285.0,91277.0,0.06573349]
[1767564620851,0.01095482,91284.0,91278.0,0.01095554]
[1767564621172,0.01095482,91284.0,91277.0,0.01095566]
[1767564621350,0.00537683,91285.0,91278.0,0.01095554]
[1767564621788,0.000999,91278.0,91267.0,0.05478385]
[1767564621988,0.000999,91278.0,91266.0,0.05857632]
[1767564621989,0.0109559,91275.0,91266.0,0.05857632]
[1767564622330,0.01095602,91274.0,91268.0,0.03287674]
[1767564622458,0.0109559,91275.0,91268.0,0.06953934]
[1767564622681,0.01095602,91274.0,91269.0,0.04406152]
[1767564622889,0.01095578,91276.0,91269.0,0.04406152]
[1767564623096,0.01095578,91276.0,91269.0,0.01095662]
[1767564623305,0.0590441,91276.0,91269.0,0.01095662]
[1767564624222,0.01095578,91276.0,91269.0,0.01095662]
[1767564624422,0.0109559,91275.0,91269.0,0.05857596]
[1767564624807,0.0109559,91275.0,91269.0,0.04761934]
[1767564625012,0.0109559,91275.0,91269.0,0.05857596]
[1767564625543,0.01095578,91276.0,91269.0,0.05857596]
[1767564626057,0.0109559,91275.0,91268.0,0.02192]
[1767564626262,0.04808832,91273.0,91269.0,0.01095662]
[1767564626440,0.0109559,91275.0,91269.0,0.01095662]
[1767564626621,0.01095578,91276.0,91269.0,0.01095662]
[1767564627024,0.01095578,91276.0,91268.0,0.03287674]
[1767564627225,0.0590441,91276.0,91268.0,0.03287674]
[1767564627855,0.01095578,91276.0,91269.0,0.04761934]
[1767564628165,0.00791144,91277.0,91269.0,0.05857596]
[1767564628379,0.00791144,91277.0,91270.0,0.05857584]
[1767564628547,0.01095554,91278.0,91270.0,0.05857584]
[1767564628754,0.01095554,91278.0,91271.0,0.01095638]
[1767564629000,0.05904398,91277.0,91270.0,0.0109565]
[1767564629207,0.01095566,91277.0,91271.0,0.04761934]
[1767564630497,0.01095578,91276.0,91270.0,0.0109565]
[1767564630719,0.01095578,91276.0,91271.0,0.04811438]
[1767564632402,0.00342225,91275.0,91271.0,0.04811438]
[1767564632564,0.00342225,91274.0,91271.0,0.04811438]
[1767564632783,0.00342225,91273.0,91271.0,0.04811438]
[1767564632964,0.00342225,91272.0,91271.0,0.04811438]
[1767564633168,0.0033773,91272.0,91271.0,0.04811438]
[1767564635751,0.01095566,91277.0,91271.0,0.04811438]
[1767564636359,0.01095578,91276.0,91271.0,0.04811438]
[1767564637417,0.01095578,91276.0,91269.0,0.01095662]
[1767564639681,0.01095578,91276.0,91268.0,0.02959677]
[1767564640262,0.01095578,91276.0,91269.0,0.01095662]
[1767564640464,0.01095518,91281.0,91273.0,0.0450963]
[1767564640826,0.0109553,91280.0,91273.0,0.0450963]
[1767564641030,0.01095494,91283.0,91273.0,0.11083281]
[1767564641204,0.01095494,91283.0,91275.0,0.0109559]
[1767564642184,0.01095494,91283.0,91276.0,0.01095578]
[1767564642699,0.01095506,91282.0,91273.0,0.11083281]
[1767564642901,0.01095506,91282.0,91275.0,0.0109559]
[1767564643684,0.01095494,91283.0,91275.0,0.0109559]
[1767564644110,0.01095494,91283.0,91276.0,0.01095578]
[1767564644315,0.01095506,91282.0,91275.0,0.0109559]
[1767564644719,0.04587924,91281.0,91275.0,0.0109559]
[1767564645321,0.01095494,91283.0,91275.0,0.0109559]
[1767564645644,0.04587924,91281.0,91275.0,0.0109559]
[1767564645987,0.04579101,91281.0,91275.0,0.0109559]
[1767564646260,0.01095506,91282.0,91275.0,0.0109559]
[1767564647403,0.01095494,91283.0,91275.0,0.0109559]
[1767564647757,0.01428901,91282.0,91275.0,0.0109559]
[1767564647995,0.01095506,91282.0,91275.0,0.0109559]
[1767564648517,0.01095494,91283.0,91276.0,0.01095578]
[1767564648855,0.01095494,91283.0,91275.0,0.0109559]
[1767564650188,0.01095494,91283.0,91276.0,0.01095578]
[1767564652427,0.01095506,91282.0,91275.0,0.0109559]
[1767564652879,0.01095506,91282.0,91274.0,0.05477999]
[1767564653117,0.01086682,91282.0,91275.0,0.0109559]
[1767564653363,0.01086682,91282.0,91276.0,0.01095578]
[1767564653571,0.01086682,91282.0,91275.0,0.0109559]
[1767564654169,0.01095494,91283.0,91276.0,0.01095578]
[1767564655386,0.01095506,91282.0,91275.0,0.0109559]
[1767564655586,0.01095494,91283.0,91276.0,0.01095578]
[1767564655996,0.01095482,91284.0,91277.0,0.01095566]
[1767564656220,0.05683418,91283.0,91275.0,0.0109559]
[1767564656582,0.05683418,91283.0,91276.0,0.01095578]
[1767564656988,0.05683418,91283.0,91275.0,0.0109559]
[1767564657286,0.01095494,91283.0,91275.0,0.0560522]
[1767564658223,0.01095494,91283.0,91276.0,0.01095578]
[1767564658606,0.01095506,91282.0,91275.0,0.0560522]
[1767564659035,0.01095506,91282.0,91275.0,0.0450963]
[1767564659290,0.01095494,91283.0,91275.0,0.0560522]
[1767564660182,0.01095482,91284.0,91277.0,0.01095566]
[1767564660346,0.01095494,91283.0,91276.0,0.01095578]
[1767564660521,0.01095506,91282.0,91275.0,0.0450963]
[1767564660722,0.01095506,91282.0,91275.0,0.0560522]
[1767564661817,0.01095494,91283.0,91275.0,0.0560522]
[1767564662176,0.01095494,91283.0,91276.0,0.01095578]
[1767564662358,0.01095506,91282.0,91275.0,0.0560522]
[1767564663162,0.01095494,91283.0,91276.0,0.01095578]
[1767564663367,0.00495494,91283.0,91276.0,0.01095578]
[1767564663656,0.01095506,91282.0,91271.0,0.04680287]
[1767564663784,0.05740724,91282.0,91270.0,0.35419291]
[1767564663988,0.01095506,91282.0,91271.0,0.04680287]
[1767564664191,0.00495494,91283.0,91275.0,0.0109559]
[1767564665209,0.01095506,91282.0,91275.0,0.0109559]
[1767564665729,0.04645218,91281.0,91275.0,0.0109559]
[1767564665960,0.04645218,91281.0,91273.0,0.05478017]
[1767564665961,0.04645218,91274.0,91273.0,0.01095614]
[1767564666074,0.000999,91275.0,91273.0,0.01095614]
[1767564666283,0.01095518,91281.0,91274.0,0.01095602]
[1767564666523,0.0109547,91285.0,91275.0,0.06573541]
[1767564666782,0.01095506,91282.0,91274.0,0.01095602]
[1767564667144,0.01095518,91281.0,91274.0,0.01095602]
[1767564667349,0.01086693,91281.0,91274.0,0.01095602]
[1767564667940,0.01095506,91282.0,91275.0,0.0109559]
[1767564668402,0.01095518,91281.0,91274.0,0.01095602]
[1767564668558,0.01095506,91282.0,91274.0,0.01095602]
[1767564668766,0.01095506,91282.0,91275.0,0.0109559]
[1767564669180,0.01095506,91282.0,91274.0,0.01095602]
[1767564670444,0.01095518,91281.0,91273.0,0.05775901]
[1767564670628,0.0109553,91280.0,91273.0,0.04680287]
[1767564670927,0.01095518,91281.0,91275.0,0.04680287]
[1767564671469,0.01095494,91283.0,91275.0,0.04680287]
[1767564671722,0.01095494,91283.0,91275.0,0.05775877]
[1767564671908,0.01095494,91283.0,91276.0,0.01095578]
[1767564672106,0.01095494,91283.0,91275.0,0.05775877]
[1767564672899,0.01095506,91282.0,91275.0,0.04708152]
[1767564673411,0.01095506,91282.0,91275.0,0.03612562]
[1767564674530,0.01095518,91281.0,91275.0,0.03612562]
[1767564675329,0.0109553,91280.0,91275.0,0.03612562]
[1767564675516,0.0109553,91280.0,91273.0,0.01095614]
[1767564675717,0.0109553,91280.0,91272.0,0.01095626]
[1767564675917,0.04645218,91278.0,91272.0,0.01095626]
[1767564676118,0.04645218,91278.0,91271.0,0.01095638]
[1767564676313,0.04645218,91278.0,91270.0,0.0109565]
[1767564676542,0.05740772,91278.0,91271.0,0.01095638]
[1767564676757,0.04645218,91278.0,91271.0,0.01095638]
[1767564676965,0.01095362,91294.0,91283.0,0.01095494]
[1767564677165,0.05477032,91291.0,91280.0,0.35419171]
[1767564677376,0.01095434,91288.0,91281.0,0.05775805]
[1767564677524,0.01095434,91288.0,91280.0,0.0109553]
[1767564677725,0.01095446,91287.0,91280.0,0.0109553]
[1767564677924,0.01095446,91287.0,91277.0,0.01095566]
[1767564678145,0.01095458,91286.0,91279.0,0.01095542]
[1767564678443,0.01095458,91286.0,91278.0,0.01095554]
[1767564678652,0.0109547,91285.0,91278.0,0.01095554]
[1767564679087,0.0109547,91285.0,91277.0,0.01095566]
[1767564679319,0.0109547,91285.0,91278.0,0.01095554]
[1767564679509,0.01095458,91286.0,91278.0,0.01095554]
[1767564680467,0.01183243,91284.0,91278.0,0.01095554]
[1767564682255,0.01095458,91286.0,91278.0,0.01095554]
[1767564682256,0.0109547,91285.0,91278.0,0.01095554]
[1767564682755,0.01095458,91286.0,91278.0,0.01095554]
[1767564684640,0.01095458,91286.0,91279.0,0.01095542]
[1767564684853,0.01095458,91286.0,91278.0,0.01095554]
[1767564685257,0.01095458,91286.0,91279.0,0.01095542]
[1767564686183,0.01095458,91286.0,91278.0,0.01095554]
[1767564686605,0.01095458,91286.0,91279.0,0.01095542]
[1767564686904,0.01095446,91287.0,91279.0,0.01095542]
[1767564687869,0.01095458,91286.0,91279.0,0.01091542]
[1767564688268,0.01095458,91286.0,91278.0,0.01095554]
[1767564688585,0.01095422,91289.0,91281.0,0.04680287]
[1767564688791,0.01095446,91287.0,91281.0,0.04680287]
[1767564689115,0.01095434,91288.0,91281.0,0.04680287]
[1767564689366,0.01095446,91287.0,91281.0,0.04680287]
[1767564689715,0.01095434,91288.0,91281.0,0.04680287]
[1767564689895,0.01095446,91287.0,91281.0,0.04680287]
[1767564690884,0.01095446,91287.0,91281.0,0.04666512]
[1767564691813,0.01095446,91287.0,91281.0,0.04652738]
[1767564692798,0.01095446,91287.0,91281.0,0.02342765]
[1767564693479,0.01095458,91286.0,91281.0,0.02328994]
[1767564695590,0.00091,91281.0,91276.0,0.04597368]
[1767564695831,0.01095542,91279.0,91276.0,0.04597368]
[1767564695983,0.0109553,91280.0,91276.0,0.04597368]
[1767564696184,0.0547759,91282.0,91276.0,0.04597368]
[1767564696869,0.01095518,91281.0,91276.0,0.04597368]
[1767564697302,0.01095542,91279.0,91276.0,0.04506368]
[1767564697478,0.0109553,91280.0,91276.0,0.04506368]
[1767564697683,0.01095518,91281.0,91276.0,0.04506368]
[1767564698354,0.06572974,91283.0,91276.0,0.04506368]
[1767564698355,0.01095506,91282.0,91276.0,0.04506368]
[1767564698579,0.01095518,91281.0,91276.0,0.04506368]
[1767564698932,0.0109553,91280.0,91276.0,0.04506368]
[1767564699133,0.01095518,91281.0,91276.0,0.04506368]
[1767564700364,0.0109553,91280.0,91276.0,0.04506368]
[1767564701355,0.01095518,91281.0,91276.0,0.04506368]
[1767564701784,0.01095506,91282.0,91276.0,0.04506368]
[1767564702373,0.01095518,91281.0,91276.0,0.04506368]
[1767564702776,0.01095506,91282.0,91276.0,0.04506368]
[1767564704598,0.0109553,91280.0,91276.0,0.04506368]
[1767564704801,0.01095494,91283.0,91280.0,0.000999]
[1767564705007,0.01095458,91286.0,91276.0,0.03291631]
[1767564705209,0.0109547,91285.0,91277.0,0.01095566]
[1767564705416,0.0109547,91285.0,91278.0,0.01095554]
[1767564708465,0.01095458,91286.0,91279.0,0.01095542]
[1767564708919,0.0109547,91285.0,91278.0,0.01095554]
[1767564709664,0.0109547,91285.0,91278.0,0.0107219]
[1767564709872,0.0109547,91285.0,91273.0,0.02192]
[1767564710078,0.0109547,91285.0,91276.0,0.05477842]
[1767564710279,0.0109547,91285.0,91276.0,0.01095578]
[1767564712073,0.0109547,91285.0,91278.0,0.01095554]
[1767564712447,0.01095458,91286.0,91278.0,0.01095554]
[1767564713792,0.01095458,91286.0,91279.0,0.01095542]
[1767564713931,0.01095458,91286.0,91278.0,0.01095554]
[1767564714786,0.01095482,91284.0,91276.0,0.01095578]
[1767564715134,0.01095482,91284.0,91277.0,0.01095566]
[1767564715759,0.01095494,91283.0,91275.0,0.0109559]
[1767564715994,0.01095506,91282.0,91274.0,0.0589989]
[1767564716361,0.01095506,91282.0,91275.0,0.05899878]
[1767564716744,0.01095494,91283.0,91275.0,0.05899878]
[1767564716941,0.01095494,91283.0,91276.0,0.01095578]
[1767564717392,0.01095482,91284.0,91276.0,0.01095578]
[1767564718478,0.01086657,91284.0,91276.0,0.01095578]
[1767564720630,0.06572871,91285.0,91277.0,0.01095566]
[1767564721066,0.01095482,91284.0,91276.0,0.01095578]
[1767564721718,0.01095494,91283.0,91276.0,0.01095578]
[1767564721906,0.01086668,91283.0,91275.0,0.05899878]
[1767564722722,0.01086668,91283.0,91276.0,0.01095578]
[1767564722927,0.01095482,91284.0,91276.0,0.01095578]
[1767564723460,0.01095494,91283.0,91275.0,0.05899878]
[1767564724085,0.01095494,91283.0,91275.0,0.05895878]
[1767564724289,0.01095506,91282.0,91275.0,0.05895878]
[1767564724482,0.01095506,91282.0,91275.0,0.04800288]
[1767564724699,0.01095518,91281.0,91273.0,0.03287614]
[1767564724899,0.01095518,91281.0,91274.0,0.01095602]
[1767564725112,0.01095518,91281.0,91273.0,0.03287614]
[1767564726756,0.01095518,91281.0,91274.0,0.01095602]
[1767564727538,0.01095506,91282.0,91274.0,0.01095602]
[1767564727708,0.01095506,91282.0,91275.0,0.0109559]
[1767564728076,0.01095506,91282.0,91274.0,0.01095602]
[1767564729668,0.01095446,91287.0,91275.0,0.0109559]
[1767564729898,0.01095482,91284.0,91276.0,0.01095578]
[1767564730302,0.01095494,91283.0,91275.0,0.0109559]
[1767564730511,0.01095494,91283.0,91276.0,0.01095578]
[1767564731130,0.01095482,91284.0,91276.0,0.01095578]
[1767564732170,0.01095494,91283.0,91275.0,0.0109559]
[1767564732503,0.01095494,91283.0,91276.0,0.01095578]
[1767564732821,0.01095506,91282.0,91274.0,0.01095602]
[1767564733024,0.0109553,91280.0,91273.0,0.01124276]
[1767564733222,0.01095554,91278.0,91273.0,0.01124276]
[1767564733475,0.01095542,91279.0,91273.0,0.01124276]
[1767564734220,0.01095554,91278.0,91273.0,0.01124276]
[1767564734390,0.01095542,91279.0,91273.0,0.01124276]
[1767564735743,0.01095554,91278.0,91273.0,0.01124276]
[1767564735991,0.01095542,91279.0,91273.0,0.01124276]
[1767564737591,0.01086702,91280.0,91273.0,0.01124276]
[1767564737986,0.01095542,91279.0,91273.0,0.01124276]
[1767564739455,0.01086702,91280.0,91273.0,0.01124276]
[1767564741072,0.01095542,91279.0,91273.0,0.01124276]
[1767564743097,0.01095554,91278.0,91273.0,0.00056552]
[1767564743586,0.01095566,91277.0,91273.0,0.00056552]
[1767564743728,0.01095554,91278.0,91273.0,0.00056552]
[1767564743972,0.01095542,91279.0,91273.0,0.00056552]